bitfinex-derivatives/quotes_BTCF0:USTF0_20250424
["timestamp","ask_amount","ask_price","bid_price","bid_amount"]
[1745481065490,0.24737478,92221.0,92220.0,0.11948411]
[1745481065680,0.13895268,92221.0,92220.0,0.11948411]
[1745481065904,0.00462718,92221.0,92220.0,0.12048411]
[1745481066084,0.00662718,92221.0,92220.0,0.15468411]
[1745481066484,0.00362718,92221.0,92220.0,0.15468411]
[1745481066690,0.00162718,92221.0,92220.0,0.19168411]
[1745481066887,0.00162718,92221.0,92220.0,0.19368411]
[1745481067790,0.0542018,92237.0,92234.0,0.1084068]
[1745481067989,0.4692057,92235.0,92234.0,0.1084068]
[1745481068188,0.4670557,92235.0,92234.0,0.1084068]
[1745481068388,0.1084221,92221.0,92220.0,0.15668371]
[1745481069199,0.1084221,92221.0,92220.0,0.0342]
[1745481069495,0.1084233,92220.0,92219.0,0.0343]
[1745481069695,0.1442233,92220.0,92219.0,0.0343]
[1745481069892,0.1442233,92220.0,92219.0,0.1427245]
[1745481071088,0.1442233,92220.0,92219.0,0.1447245]
[1745481071687,0.0542103,92223.0,92222.0,0.1084209]
[1745481071901,0.0900092,92225.0,92224.0,0.1084186]
[1745481072700,0.0900092,92225.0,92224.0,0.1774186]
[1745481073301,0.0378,92225.0,92224.0,0.1794186]
[1745481073600,0.0365,92234.0,92233.0,0.108408]
[1745481073804,0.1083962,92248.0,92247.0,0.1083869]
[1745481074800,0.35555443,92255.0,92253.0,0.1083833]
[1745481074801,0.1083836,92254.0,92253.0,0.1083833]
[1745481075102,0.3608,92261.0,92258.0,0.1083786]
[1745481076098,0.1083772,92260.0,92258.0,0.1083786]
[1745481076301,0.250703,92259.0,92258.0,0.1093786]
[1745481076597,0.254703,92259.0,92258.0,0.1103786]
[1745481078206,0.152763,92259.0,92258.0,0.1103786]
[1745481079203,0.1173775,92259.0,92258.0,0.1183806]
[1745481081502,0.009,92259.0,92258.0,0.1183806]
[1745481082091,0.1133775,92259.0,92258.0,0.1183806]
[1745481082296,0.1093775,92259.0,92258.0,0.1173806]
[1745481082491,0.001,92259.0,92258.0,0.1173806]
[1745481084515,0.3608,92286.0,92259.0,0.0541885]
[1745481084697,0.0686,92279.0,92271.0,0.1083634]
[1745481084903,0.1083553,92278.0,92271.0,0.1083634]
[1745481085102,0.0341,92279.0,92271.0,0.1083634]
[1745481085299,0.26048656,92272.0,92271.0,0.1083634]
[1745481085596,0.26448656,92272.0,92271.0,0.1083634]
[1745481085802,0.26448656,92272.0,92271.0,0.1093634]
[1745481086002,0.26948656,92272.0,92271.0,0.1093634]
[1745481086203,0.1173622,92272.0,92271.0,0.1093634]
[1745481086416,0.1173622,92272.0,92271.0,0.1103634]
[1745481089520,0.009,92272.0,92271.0,0.1103634]
[1745481089909,0.009,92272.0,92271.0,0.4711634]
[1745481091219,0.0798,92272.0,92271.0,0.4711634]
[1745481092320,0.1881622,92272.0,92271.0,0.4711634]
[1745481093219,0.1881622,92272.0,92271.0,0.3628]
[1745481093722,0.1881622,92272.0,92271.0,0.002]
[1745481093723,0.5489622,92272.0,92271.0,0.002]
[1745481097422,0.5489622,92272.0,92215.0,0.3608]
[1745481097423,0.1084057,92235.0,92215.0,0.3608]
[1745481097609,0.4692057,92235.0,92221.0,0.0880109]
[1745481097812,0.4692057,92235.0,92216.0,0.0382844]
[1745481097813,0.0542126,92219.0,92216.0,0.0010844]
[1745481098023,0.1084268,92217.0,92216.0,0.1095116]
[1745481098213,0.1084268,92217.0,92216.0,0.1433116]
[1745481098713,0.1797268,92217.0,92216.0,0.1433116]
[1745481099109,0.1797268,92217.0,92216.0,0.1473116]
[1745481099308,0.1797268,92217.0,92216.0,0.0388844]
[1745481099513,0.1797268,92217.0,92216.0,0.0348844]
[1745481099716,0.1807268,92217.0,92216.0,0.1433124]
[1745481100108,0.1817268,92217.0,92216.0,0.1493124]
[1745481100316,0.1817268,92217.0,92216.0,0.0070844]
[1745481101020,0.1817268,92217.0,92216.0,0.0030844]
[1745481101523,0.1797268,92217.0,92216.0,0.0010844]
[1745481101713,0.1817268,92217.0,92216.0,0.0050844]
[1745481102114,0.1817268,92217.0,92216.0,0.0040844]
[1745481102711,0.1807268,92217.0,92216.0,0.0030844]
[1745481104020,0.1807268,92217.0,92216.0,0.0040844]
[1745481104621,0.1797268,92217.0,92216.0,0.0010844]
[1745481104817,0.1817268,92217.0,92216.0,0.0030844]
[1745481107316,0.29016681,92217.0,92216.0,0.0030844]
[1745481107526,0.29116681,92217.0,92216.0,0.0020844]
[1745481107726,0.29016681,92217.0,92216.0,0.0020844]
[1745481107927,0.29116681,92217.0,92216.0,0.0030844]
[1745481108131,0.29116681,92217.0,92216.0,0.1115124]
[1745481108328,0.29016681,92217.0,92216.0,0.0020844]
[1745481108529,0.29216681,92217.0,92216.0,0.0030844]
[1745481109322,0.29116681,92217.0,92216.0,0.0020844]
[1745481109523,0.29016681,92217.0,92216.0,0.0020844]
[1745481109931,0.29016681,92217.0,92216.0,0.1105124]
[1745481110634,0.28916681,92217.0,92216.0,0.1105124]
[1745481110835,0.29016681,92217.0,92216.0,0.1105124]
[1745481111530,0.29116681,92217.0,92216.0,0.0020844]
[1745481111731,0.1084468,92200.0,92197.0,0.0355]
[1745481112229,0.1084468,92200.0,92199.0,0.11387102]
[1745481113024,0.1094468,92200.0,92199.0,0.11787102]
[1745481113228,0.1104468,92200.0,92199.0,0.12087102]
[1745481114439,0.1104468,92200.0,92199.0,0.01242302]
[1745481114940,0.1805468,92200.0,92199.0,0.01242302]
[1745481115333,0.1805468,92200.0,92199.0,0.12087102]
[1745481115534,0.1805468,92200.0,92199.0,0.01242302]
[1745481120743,0.1104468,92200.0,92199.0,0.12087102]
[1745481121247,0.002,92200.0,92199.0,0.12087102]
[1745481121633,0.0542202,92206.0,92201.0,0.0542226]
[1745481121837,0.1626635,92206.0,92205.0,0.1084397]
[1745481122346,0.1626635,92206.0,92205.0,0.1792397]
[1745481122547,0.1084362,92209.0,92207.0,0.0542188]
[1745481122844,0.4150176,92210.0,92209.0,0.1084362]
[1745481123236,0.4150176,92210.0,92209.0,0.1792362]
[1745481124935,0.4160176,92210.0,92209.0,0.1812362]
[1745481125141,0.4170176,92210.0,92209.0,0.1832362]
[1745481125444,0.3618,92210.0,92209.0,0.1822362]
[1745481125635,0.3628,92210.0,92209.0,0.1822362]
[1745481125831,0.3618,92210.0,92209.0,0.1802362]
[1745481126039,0.3618,92210.0,92209.0,0.1822362]
[1745481126644,0.001,92210.0,92209.0,0.1822362]
[1745481126942,0.3682266,92218.0,92217.0,0.1084268]
[1745481127543,0.2598,92218.0,92217.0,0.1084268]
[1745481127742,0.2598,92218.0,92217.0,0.1780268]
[1745481127949,0.1084247,92219.0,92218.0,0.1084256]
[1745481128141,0.1084247,92219.0,92218.0,0.1780256]
[1745481128941,0.1445247,92219.0,92218.0,0.1780256]
[1745481129243,0.1475247,92219.0,92218.0,0.1790256]
[1745481130437,0.1475247,92219.0,92218.0,0.0706]
[1745481130847,0.1475247,92219.0,92218.0,0.1790256]
[1745481131047,0.1475247,92219.0,92218.0,0.0354]
[1745481131237,0.25596471,92219.0,92218.0,0.001]
[1745481134141,0.108435,92210.0,92209.0,0.0342]
[1745481134343,0.469235,92210.0,92209.0,0.0342]
[1745481134751,0.0542205,92205.0,92192.0,0.01394228]
[1745481134955,0.1084656,92184.0,92183.0,0.15412003]
[1745481135254,0.4692656,92184.0,92183.0,0.15412003]
[1745481135442,0.5777456,92184.0,92183.0,0.15412003]
[1745481135953,0.6501456,92184.0,92183.0,0.15412003]
[1745481136853,0.1084692,92181.0,92177.0,0.0050897]
[1745481137050,0.1084727,92178.0,92177.0,0.0050897]
[1745481137457,0.2169607,92178.0,92177.0,0.0050897]
[1745481138652,0.2179607,92178.0,92177.0,0.0070897]
[1745481138955,0.2189607,92178.0,92177.0,0.0140897]
[1745481139453,0.1104727,92178.0,92177.0,0.0140897]
[1745481139650,0.002,92178.0,92177.0,0.1225636]
[1745481139851,0.05423,92189.0,92183.0,0.162692]
[1745481140153,0.1084644,92186.0,92185.0,0.0542322]
[1745481140347,0.1084644,92186.0,92185.0,0.1270322]
[1745481141346,0.1094644,92186.0,92185.0,0.1340322]
[1745481141546,0.1094633,92186.0,92185.0,0.4948322]
[1745481141753,0.1104633,92186.0,92185.0,0.4978322]
[1745481142254,0.002,92186.0,92185.0,0.4978322]
[1745481142657,0.1084617,92188.0,92187.0,0.1626903]
[1745481142957,0.1084516,92196.0,92195.0,0.1084527]
[1745481143359,0.0542254,92197.0,92196.0,0.1084515]
[1745481143563,0.1084474,92200.0,92199.0,0.1084468]
[1745481144761,0.1084474,92200.0,92194.0,0.4150265]
[1745481144762,0.1084503,92198.0,92197.0,0.1084503]
[1745481146560,0.1094503,92198.0,92197.0,0.1144503]
[1745481147064,0.1104503,92198.0,92197.0,0.1194503]
[1745481149164,0.1104503,92198.0,92197.0,0.011]
[1745481149566,0.1816503,92198.0,92197.0,0.011]
[1745481150061,0.2161503,92198.0,92197.0,0.011]
[1745481155569,0.2161503,92198.0,92181.0,0.0369]
[1745481155763,0.0542333,92184.0,92183.0,0.3608]
[1745481156066,0.1084703,92180.0,92179.0,0.1084715]
[1745481157667,0.1084703,92180.0,92177.0,0.0792497]
[1745481157668,0.1084727,92178.0,92177.0,0.0792497]
[1745481158765,0.1094727,92178.0,92177.0,0.1917236]
[1745481160568,0.1104727,92178.0,92177.0,0.1917236]
[1745481162859,0.1104727,92178.0,92177.0,0.2611236]
[1745481163060,0.1104727,92178.0,92177.0,0.1526497]
[1745481163263,0.1104727,92178.0,92177.0,0.2611236]
[1745481166159,0.1104727,92178.0,92177.0,0.0784897]
[1745481166365,0.1104727,92178.0,92177.0,0.0445897]
[1745481167170,0.1440727,92178.0,92177.0,0.0445897]
[1745481169974,0.0356,92178.0,92174.0,9e-08]
[1745481170181,0.05424,92172.0,92165.0,4e-08]
[1745481170477,0.1084915,92162.0,92160.0,0.0026144]
[1745481170684,0.1084915,92162.0,92161.0,0.04040558]
[1745481171172,0.2804915,92162.0,92161.0,0.04040558]
[1745481171383,0.3498915,92162.0,92161.0,0.04040558]
[1745481172482,0.3528915,92162.0,92161.0,0.04040558]
[1745481173571,0.3558915,92162.0,92161.0,0.04140558]
[1745481176466,0.178,92162.0,92161.0,0.14989828]
[1745481176677,0.07596,92162.0,92161.0,0.18449828]
[1745481177174,0.006,92162.0,92161.0,0.18449828]
[1745481177376,0.13169648,92175.0,92174.0,0.1084774]
[1745481177675,0.162719,92175.0,92174.0,0.1627156]
[1745481177874,0.1084786,92173.0,92172.0,0.4150394]
[1745481178070,0.1084786,92173.0,92172.0,0.4692797]
[1745481178763,0.1084786,92173.0,92172.0,0.3608]
[1745481178965,0.1084786,92173.0,92172.0,0.4692797]
[1745481179165,0.2804786,92173.0,92172.0,0.5035797]
[1745481179369,0.2814786,92173.0,92172.0,0.5035797]
[1745481180077,0.1094786,92173.0,92172.0,0.5035797]
[1745481180276,0.002,92173.0,92172.0,0.5065797]
[1745481180578,0.002,92173.0,92172.0,0.6150717]
[1745481181174,0.0703124,92179.0,92178.0,0.1084727]
[1745481181571,0.0352,92189.0,92173.0,0.0359]
[1745481181572,0.0542347,92181.0,92177.0,0.0342]
[1745481181772,0.1084786,92173.0,92172.0,0.3638]
[1745481182076,0.2804786,92173.0,92172.0,0.4722797]
[1745481182470,0.2804786,92173.0,92172.0,0.3638]
[1745481182678,0.3490786,92173.0,92172.0,0.4722797]
[1745481183074,0.3500786,92173.0,92172.0,0.4742797]
[1745481183276,0.3500786,92173.0,92172.0,0.3658]
[1745481184086,0.3500786,92173.0,92172.0,0.005]
[1745481184276,0.3510786,92173.0,92172.0,0.009]
[1745481188873,0.3510786,92173.0,92172.0,0.1174797]
[1745481189069,0.3510786,92173.0,92172.0,0.009]
[1745481189274,0.3510786,92173.0,92172.0,0.0424]
[1745481195371,0.3510786,92173.0,92172.0,0.1508797]
[1745481195579,0.174,92173.0,92172.0,0.1508797]
[1745481195776,0.2824786,92173.0,92172.0,0.1508797]
[1745481195977,0.2824786,92173.0,92172.0,0.1849797]
[1745481196183,0.1104786,92173.0,92172.0,0.1849797]
[1745481199279,0.1104786,92173.0,92172.0,0.5457797]
[1745481202091,0.2824786,92173.0,92172.0,0.5457797]
[1745481208085,0.174,92173.0,92172.0,0.5457797]
[1745481208397,0.2824786,92173.0,92172.0,0.5457797]
[1745481211204,0.174,92173.0,92172.0,0.5457797]
[1745481211800,0.2824786,92173.0,92172.0,0.5457797]
[1745481212107,0.1104786,92173.0,92172.0,0.5457797]
[1745481213195,0.2824786,92173.0,92172.0,0.5457797]
[1745481217220,0.2824786,92173.0,92172.0,0.3698]
[1745481217415,0.7483786,92173.0,92172.0,0.009]
[1745481218298,0.8568706,92173.0,92172.0,0.009]
[1745481218612,0.86765497,92173.0,92172.0,0.009]
[1745481226618,0.8568706,92173.0,92172.0,0.009]
[1745481227203,0.7483786,92173.0,92172.0,0.009]
[1745481231723,0.83052654,92173.0,92172.0,0.009]
[1745481234022,0.83052654,92173.0,92172.0,0.0431]
[1745481234723,0.1084951,92159.0,92156.0,0.00108511]
[1745481234927,0.4692951,92159.0,92156.0,0.00108511]
[1745481235125,0.6412951,92159.0,92157.0,0.0341]
[1745481235325,0.6412951,92159.0,92158.0,0.03920876]
[1745481235818,0.2804951,92159.0,92158.0,0.03920876]
[1745481236022,0.2834951,92159.0,92158.0,0.04720876]
[1745481236323,0.2864951,92159.0,92158.0,0.08130876]
[1745481237221,0.1144951,92159.0,92158.0,0.08130876]
[1745481238225,0.2864951,92159.0,92158.0,0.08130876]
[1745481239220,0.1144951,92159.0,92158.0,0.08130876]
[1745481240427,0.2864951,92159.0,92158.0,0.08130876]
[1745481243226,0.2864951,92159.0,92158.0,0.04690876]
[1745481243618,0.3549951,92159.0,92158.0,0.04690876]
[1745481244328,0.1085009,92154.0,92153.0,0.0347]
[1745481245030,0.1085021,92153.0,92151.0,0.00821651]
[1745481245224,0.2805021,92153.0,92151.0,0.00821651]
[1745481245431,0.3458021,92153.0,92151.0,0.00821651]
[1745481246327,0.3488021,92153.0,92152.0,0.0065089]
[1745481246521,0.3168021,92153.0,92152.0,0.0065089]
[1745481247425,0.3168021,92153.0,92152.0,0.0720089]
[1745481247626,0.3521021,92153.0,92152.0,0.0720089]
[1745481249919,0.3521021,92153.0,92152.0,0.0395089]
[1745481255633,0.2865021,92153.0,92152.0,0.5088122]
[1745481255833,0.2865021,92153.0,92152.0,0.5414122]
[1745481256733,0.3524021,92153.0,92152.0,0.5414122]
[1745481257234,0.1804021,92153.0,92152.0,0.5414122]
[1745481259037,0.10945583,92163.0,92156.0,0.054249]
[1745481259342,0.00740583,92163.0,92162.0,0.4692915]
[1745481259734,0.00740583,92163.0,92162.0,0.5346915]
[1745481260034,0.01040583,92163.0,92162.0,0.5346915]
[1745481260432,0.01340583,92163.0,92162.0,0.5346915]
[1745481261342,0.006,92163.0,92162.0,0.5346915]
[1745481262040,0.006,92163.0,92162.0,0.54546042]
[1745481262440,0.0335,92179.0,92162.0,0.43696892]
[1745481262750,0.2169486,92183.0,92182.0,0.0542334]
[1745481263632,0.2169486,92183.0,92182.0,0.1228334]
[1745481264443,0.1084892,92164.0,92162.0,0.3608]
[1745481264751,0.1084892,92164.0,92163.0,0.14431786]
[1745481265736,0.1084892,92164.0,92163.0,0.19251853]
[1745481265930,0.1114892,92164.0,92163.0,0.19551853]
[1745481266540,0.1144892,92164.0,92163.0,0.19851853]
[1745481267037,0.006,92164.0,92163.0,0.19851853]
[1745481267439,0.1144892,92164.0,92163.0,0.19851853]
[1745481267743,0.1144892,92164.0,92163.0,0.19883162]
[1745481268938,0.006,92164.0,92163.0,0.19883162]
[1745481269139,0.1144892,92164.0,92163.0,0.19883162]
[1745481272947,0.1144892,92164.0,92163.0,0.18271786]
[1745481274357,0.0331,92165.0,92163.0,0.18271786]
[1745481274546,0.141588,92165.0,92164.0,0.1416892]
[1745481275259,0.313588,92165.0,92164.0,0.2086892]
[1745481275559,0.316588,92165.0,92164.0,0.2086892]
[1745481275944,0.355388,92165.0,92164.0,0.2116892]
[1745481276145,0.352388,92165.0,92164.0,0.2116892]
[1745481276349,0.0848756,101120.0,92164.0,0.2116892]
[1745481276350,0.0542296,92190.0,92186.0,0.1084633]
[1745481276551,0.1095621,92187.0,92186.0,0.1084633]
[1745481276752,0.1084621,92187.0,92186.0,0.1626946]
[1745481277146,0.2804621,92187.0,92186.0,0.1626946]
[1745481277551,0.2814621,92187.0,92186.0,0.1656946]
[1745481277956,0.2824621,92187.0,92186.0,0.1736946]
[1745481278149,0.3163621,92187.0,92186.0,0.1736946]
[1745481280349,0.3163621,92187.0,92186.0,0.2093946]
[1745481288060,0.2824621,92187.0,92186.0,0.2093946]
[1745481288356,0.3162621,92187.0,92186.0,0.2093946]
[1745481302672,0.1626804,92195.0,92192.0,0.1626814]
[1745481302972,0.1041,92194.0,92193.0,0.142355]
[1745481303270,0.1041,92194.0,92193.0,0.503155]
[1745481303869,0.2125539,92194.0,92193.0,0.503155]
[1745481304370,0.3855539,92194.0,92193.0,0.509155]
[1745481304560,0.3865539,92194.0,92193.0,0.514155]
[1745481305063,0.3865539,92194.0,92193.0,0.153355]
[1745481310973,0.3865539,92194.0,92193.0,0.16909235]
[1745481312071,0.3865539,92194.0,92193.0,0.153355]
[1745481314875,0.3865539,92194.0,92193.0,0.011]
[1745481315067,0.3865539,92194.0,92193.0,0.119455]
[1745481315373,0.3865539,92194.0,92193.0,0.011]
[1745481315778,0.3865539,92194.0,92193.0,0.119455]
[1745481316369,0.3507539,92194.0,92193.0,0.119455]
[1745481317067,0.2423,92194.0,92193.0,0.119455]
[1745481317278,0.3507539,92194.0,92193.0,0.119455]
[1745481321195,0.3507539,92194.0,92193.0,0.13521153]
[1745481322197,0.3507539,92194.0,92193.0,0.119455]
[1745481325702,0.3507539,92194.0,92193.0,0.152555]
[1745481327095,0.3507539,92194.0,92193.0,0.186155]
[1745481327296,0.2423,92194.0,92193.0,0.186155]
[1745481328488,0.3507539,92194.0,92193.0,0.186155]
[1745481332494,0.2423,92194.0,92193.0,0.186155]
[1745481333797,0.3507539,92194.0,92193.0,0.186155]
[1745481336205,0.2423,92194.0,92193.0,0.186155]
[1745481337799,0.0349,92202.0,92193.0,0.186155]
[1745481337800,0.10968439,92206.0,92205.0,0.1084409]
[1745481338205,0.00767439,92206.0,92205.0,0.1444409]
[1745481338906,0.00767439,92206.0,92205.0,0.1799409]
[1745481339205,0.17967439,92206.0,92205.0,0.1799409]
[1745481339391,0.18067439,92206.0,92205.0,0.1829409]
[1745481339596,0.18167439,92206.0,92205.0,0.1829409]
[1745481340105,0.18167439,92206.0,92205.0,0.19359624]
[1745481341206,0.174,92206.0,92205.0,0.19359624]
[1745481341704,0.174,92206.0,92205.0,0.15809624]
[1745481342007,0.2824397,92206.0,92205.0,0.15809624]
[1745481342403,0.3484397,92206.0,92205.0,0.15809624]
[1745481342700,0.3484397,92206.0,92205.0,0.003]
[1745481346791,0.3484397,92206.0,92189.0,0.1084596]
[1745481346792,0.108455,92193.0,92189.0,0.1084596]
[1745481346999,0.108455,92193.0,92184.0,0.0716]
[1745481347200,0.384355,92193.0,92184.0,0.0716]
[1745481347400,0.384355,92193.0,92185.0,0.01112664]
[1745481347610,0.384355,92193.0,92184.0,0.0716]
[1745481347802,0.384355,92193.0,92192.0,0.4692562]
[1745481348006,0.385355,92193.0,92192.0,0.4722562]
[1745481348209,0.385355,92193.0,92192.0,0.003]
[1745481348603,0.386355,92193.0,92192.0,0.008]
[1745481349607,0.386355,92193.0,92192.0,0.1164562]
[1745481351210,0.386355,92193.0,92192.0,0.1513562]
[1745481351814,0.244,92193.0,92192.0,0.1513562]
[1745481352113,0.244,92193.0,92192.0,0.1866562]
[1745481352504,0.352455,92193.0,92192.0,0.1866562]
[1745481352804,0.352455,92193.0,92192.0,0.1513562]
[1745481353304,0.244,92193.0,92192.0,0.1513562]
[1745481353802,0.352455,92193.0,92192.0,0.1513562]
[1745481357903,0.244,92193.0,92192.0,0.1513562]
[1745481358304,0.244,92193.0,92192.0,0.1873562]
[1745481358608,0.244,92193.0,92192.0,0.20338273]
[1745481358800,0.244,92193.0,92192.0,0.2033827]
[1745481359203,0.352455,92193.0,92192.0,0.2033827]
[1745481360010,0.352455,92193.0,92192.0,0.2009827]
[1745481360404,0.174,92193.0,92192.0,0.1849562]
[1745481361203,0.002,92193.0,92192.0,0.1849562]
[1745481361415,0.002,92193.0,92192.0,0.20072792]
[1745481362499,0.002,92193.0,92192.0,0.1849562]
[1745481366208,0.174,92193.0,92192.0,0.1849562]
[1745481366408,0.282455,92193.0,92192.0,0.1849562]
[1745481367007,0.174,92193.0,92192.0,0.1849562]
[1745481367206,0.282455,92193.0,92192.0,0.1849562]
[1745481367407,0.282455,92193.0,92192.0,0.1489562]
[1745481367808,0.174,92193.0,92192.0,0.1489562]
[1745481368009,0.282455,92193.0,92192.0,0.1489562]
[1745481371118,0.282455,92193.0,92192.0,0.1140562]
[1745481374418,0.282455,92193.0,92192.0,0.0056]
[1745481374913,0.282455,92193.0,92192.0,0.1140562]
[1745481375119,0.282455,92193.0,92192.0,0.1482562]
[1745481376519,0.282455,92193.0,92192.0,0.1140562]
[1745481378922,0.282455,92193.0,92192.0,0.1116562]
[1745481380215,0.349955,92193.0,92192.0,0.1466562]
[1745481381931,0.349955,92193.0,92192.0,0.1116562]
[1745481382519,0.349955,92193.0,92192.0,0.0032]
[1745481385015,0.45842301,92193.0,92192.0,0.0032]
[1745481385327,0.1084739,92177.0,92176.0,0.108475]
[1745481385719,0.2146739,92177.0,92176.0,0.108475]
[1745481386126,0.3866739,92177.0,92176.0,0.108475]
[1745481386521,0.3866739,92177.0,92176.0,0.112475]
[1745481386723,0.3876739,92177.0,92176.0,0.112475]
[1745481386926,0.3876739,92177.0,92176.0,0.146675]
[1745481387329,0.2802,92177.0,92176.0,0.147675]
[1745481387519,0.2455,92177.0,92176.0,0.215975]
[1745481388716,0.3539739,92177.0,92176.0,0.215975]
[1745481389130,0.2455,92177.0,92176.0,0.215975]
[1745481391629,0.3539739,92177.0,92176.0,0.215975]
[1745481393128,0.3539739,92177.0,92176.0,0.182075]
[1745481393330,0.3539739,92177.0,92176.0,0.111075]
[1745481393919,0.3539739,92177.0,92176.0,0.145275]
[1745481402133,0.3539739,92177.0,92176.0,0.179975]
[1745481402531,0.3173739,92177.0,92176.0,0.179975]
[1745481402837,0.174,92177.0,92176.0,0.179975]
[1745481403331,0.002,92177.0,92176.0,0.179975]
[1745481406037,0.1104739,92177.0,92176.0,0.177575]
[1745481408134,0.2824739,92177.0,92176.0,0.177575]
[1745481410223,0.3538739,92177.0,92176.0,0.177575]
[1745481410427,0.3538739,92177.0,92176.0,0.538375]
[1745481418237,0.2454,92177.0,92176.0,0.538375]
[1745481418435,0.3538739,92177.0,92176.0,0.538375]
[1745481419729,0.2454,92177.0,92176.0,0.538375]
[1745481419937,0.3538739,92177.0,92176.0,0.538375]
[1745481420334,0.2454,92177.0,92176.0,0.538375]
[1745481421643,0.2094,92177.0,92176.0,0.538375]
[1745481421846,0.2094,92177.0,92176.0,0.535975]
[1745481422238,0.0374,92177.0,92176.0,0.535975]
[1745481424045,0.2094,92177.0,92176.0,0.535975]
[1745481425347,0.174,92177.0,92176.0,0.535975]
[1745481426239,0.002,92177.0,92176.0,0.535975]
[1745481429542,0.002,92177.0,92176.0,0.607535]
[1745481430247,0.174,92177.0,92176.0,0.607535]
[1745481430842,0.174,92177.0,92176.0,0.535975]
[1745481431237,0.2101,92177.0,92176.0,0.535975]
[1745481433151,0.0381,92177.0,92176.0,0.535975]
[1745481435048,0.0381,92177.0,92176.0,0.172775]
[1745481435254,0.2101,92177.0,92176.0,0.172775]
[1745481435454,0.2101,92177.0,92176.0,0.533575]
[1745481436258,0.0381,92177.0,92176.0,0.533575]
[1745481437154,0.2101,92177.0,92176.0,0.533575]
[1745481438558,0.0542276,92193.0,92192.0,0.1626831]
[1745481438763,0.1626835,92193.0,92192.0,0.1626831]
[1745481439141,0.3346835,92193.0,92192.0,0.1626831]
[1745481439856,0.3356835,92193.0,92192.0,0.1656831]
[1745481440456,0.4073835,92193.0,92192.0,0.1656831]
[1745481441261,0.4083835,92193.0,92192.0,0.1666831]
[1745481448460,0.4083835,92193.0,92192.0,0.1642831]
[1745481455573,0.2457,92193.0,92192.0,0.1642831]
[1745481456370,0.2457,92193.0,92192.0,0.1999831]
[1745481456669,0.354155,92193.0,92192.0,0.1999831]
[1745481457767,0.2457,92193.0,92192.0,0.1999831]
[1745481460773,0.354155,92193.0,92192.0,0.1999831]
[1745481461471,0.2457,92193.0,92192.0,0.1999831]
[1745481462773,0.354155,92193.0,92192.0,0.1999831]
[1745481464476,0.354155,92193.0,92192.0,0.1975831]
[1745481465877,0.354155,92193.0,92192.0,0.21331468]
[1745481466781,0.354155,92193.0,92192.0,0.1975831]
[1745481474281,0.354155,92193.0,92192.0,0.1618831]
[1745481478596,0.354155,92193.0,92192.0,0.1979831]
[1745481479985,0.354155,92193.0,92192.0,0.1955831]
[1745481481981,0.354155,92193.0,92192.0,0.2315831]
[1745481483288,0.174,92193.0,92192.0,0.2315831]
[1745481483490,0.174,92193.0,92192.0,0.3400511]
[1745481483686,0.10956057,92206.0,92199.0,0.0542236]
[1745481483878,0.10956057,92206.0,92205.0,0.1084409]
[1745481484689,0.0693,92214.0,92213.0,0.1084315]
[1745481484690,0.0338,92214.0,92213.0,0.1084315]
[1745481484892,0.13873267,92216.0,92215.0,0.1084292]
[1745481485183,0.17253267,92216.0,92215.0,0.11937592]
[1745481485380,0.13873267,92216.0,92215.0,0.11937592]
[1745481485581,0.13873267,92216.0,92215.0,0.18977592]
[1745481486181,0.31073267,92216.0,92215.0,0.18977592]
[1745481487190,0.13973267,92216.0,92215.0,0.19277592]
[1745481487892,0.00262718,92216.0,92215.0,0.19277592]
[1745481488083,0.20962718,92216.0,92215.0,0.19277592]
[1745481488285,0.20962718,92216.0,92215.0,0.19477592]
[1745481490696,0.24412718,92216.0,92215.0,0.19477592]
[1745481491485,0.24412718,92216.0,92215.0,0.16007592]
[1745481491692,0.28142718,92216.0,92215.0,0.16007592]
[1745481492382,0.24412718,92216.0,92215.0,0.16007592]
[1745481492586,0.24412718,92216.0,92215.0,0.19497592]
[1745481494000,0.24412718,92216.0,92215.0,0.19257592]
[1745481494291,0.20962718,92216.0,92215.0,0.19257592]
[1745481496991,0.17462718,92216.0,92215.0,0.19257592]
[1745481497503,0.20952718,92216.0,92215.0,0.19257592]
[1745481497898,0.17462718,92216.0,92215.0,0.19257592]
[1745481502121,0.00262718,92216.0,92215.0,0.19257592]
[1745481503106,0.0653,92221.0,92217.0,0.0542131]
[1745481503303,0.4139,92239.0,92231.0,0.1084104]
[1745481503914,0.4139,92239.0,92231.0,0.1432104]
[1745481504116,0.204,92232.0,92231.0,0.1432104]
[1745481505617,0.207,92232.0,92231.0,0.1442104]
[1745481505818,0.209,92232.0,92231.0,0.1442104]
[1745481508319,0.275,92232.0,92231.0,0.1442104]
[1745481512323,0.1083938,92246.0,92245.0,0.1083927]
[1745481512716,0.1083938,92246.0,92245.0,0.1429927]
[1745481513223,0.2803938,92246.0,92245.0,0.1429927]
[1745481513423,0.2853938,92246.0,92245.0,0.1439927]
[1745481513618,0.2853938,92246.0,92245.0,0.0356]
[1745481513819,0.2853938,92246.0,92245.0,0.1093939]
[1745481514516,0.2913938,92246.0,92245.0,0.1103939]
[1745481515020,0.2913938,92246.0,92245.0,0.1433939]
[1745481515415,0.3912938,92246.0,92245.0,0.1433939]
[1745481515818,0.3912938,92246.0,92245.0,0.1541427]
[1745481515819,0.2829,92246.0,92245.0,0.1541427]
[1745481516020,0.2829,92246.0,92245.0,0.1433939]
[1745481516218,0.218,92246.0,92245.0,0.1433939]
[1745481516415,0.183,92246.0,92245.0,0.18937415]
[1745481517215,0.3263927,92246.0,92245.0,0.18937415]
[1745481518218,0.3183927,92246.0,92245.0,0.18737415]
[1745481519228,0.3183927,92246.0,92245.0,0.1763939]
[1745481519722,0.21,92246.0,92245.0,0.1763939]
[1745481522631,0.21,92246.0,92245.0,0.18747161]
[1745481524531,0.175,92246.0,92245.0,0.18747161]
[1745481532022,0.175,92246.0,92245.0,0.15247161]
[1745481532325,0.2751,92246.0,92245.0,0.15202799]
[1745481536433,0.2751,92246.0,92245.0,0.1413939]
[1745481538031,0.2751,92246.0,92245.0,0.15227676]
[1745481539635,0.2415,92246.0,92245.0,0.15227676]
[1745481539831,0.2415,92246.0,92245.0,0.18617676]
[1745481540726,0.2074,92246.0,92245.0,0.18617676]
[1745481543644,0.2074,92246.0,92245.0,0.033]
[1745481543645,0.3157927,92246.0,92245.0,0.033]
[1745481543846,0.3484927,92246.0,92245.0,0.033]
[1745481544546,0.3464927,92246.0,92245.0,0.036]
[1745481544844,0.3464927,92246.0,92245.0,0.1483939]
[1745481548051,0.3464927,92246.0,92245.0,0.007]
[1745481549142,0.3464927,92246.0,92245.0,0.1153939]